Workbook

Sheet Calculs
A1: Remise à jour annuelle de la composition du prix de revient.
A2: Prix de reveient = coût de production - aides affectées
B3: Références
A4: Données du groupe | B4: AB Zone herbagère | D4: Modifs
A5: Productivité numérique | B5: 1.45 | D5: 1.45
A6: Taux renouvellement % | B6: 25 | D6: 25
A7: Nombre d'agneaux vendus par brebis | B7: =B5-(B5*B6/100) -> 1.0875 | D7: =D5-(D5*D6/100) -> 1.0875
A8: Kgs carcasse vendu/agneau | B8: =(B9-B10-B11)/B7 -> 18.50114943 | D8: 18.5
A9: Equivalent Kgs carcasse/brebis | B9: 22.8 | D9: =D8*D7+(B10+B11) -> 22.79875
A10: Part réformes en kgs carcasse/brebis | B10: 1.58
A11: Part des achats en moins en kgs carcasse/brebis | B11: 1.1
A12: Kgs de concentrés consommés/brebis | B12: 102 | D12: 102
A13: €/kg du cocnentré acheté et prélevé (prix de cession) | B13: 0.424 | D13: 0.424
A14: Coût du concentré / brebis | B14: =B12*B13 -> 43.248 | D14: =D12*D13 -> 43.248
B16: Références | C16: Références | D16: Résultats
A17: Coût de prod Ovins avec céré prix cession | B17: €/kg carcasse | C17: €/brebis | D17: €/kg carcasse
A18: Alimentation (yc alic prélevés et fourrages) | B18: 1.94 | C18: =B18*$B$9 -> 44.232 | D18: =((C18-B14)+D14)/$D$9 -> 1.940106365
A19: Frais d'élevage (hors achats d'Ax yc véto+CMV) | B19: 1.42 | C19: =B19*$B$9 -> 32.376 | D19: =C19/$D$9 -> 1.420077855
A20: Part génétique des achats d'Ax | B20: 0.06 | C20: 1.368 | D20: 0.06000328965
A21: Frais SFP hors entreprise | B21: 0.44 | C21: 10.032 | D21: 0.4400241241
A22: Total Charges proportionnelles | B22: =SUM(B18:B21) -> 3.86 | D22: =SUM(D18:D21) -> 3.860211634
A23: CP non affectables | B23: 0.07 | C23: =B23*$B$9 -> 1.596 | D23: 0.07000383793
A24: Mécanisation | B24: 1.31 | C24: 29.868 | D24: 1.310071824
A25: Bâtiments + clôtures | B25: 0.41 | C25: 9.348 | D25: 0.4100224793
A26: Frais de gestion (ou ch.div.) | B26: 0.81 | C26: 18.468 | D26: 0.8100444103
A27: Ch. Foncières | B27: 0.85 | C27: 19.38 | D27: 0.8500466034
A28: Frais financiers | B28: 0.07 | C28: 1.596 | D28: 0.07000383793
A29: Trav.(sala+Msa+Agri) | B29: 0.8 | C29: 18.24 | D29: 0.8000438621
A30: Rémun. nette de MO fam Ov à 1.5 SMIC | B30: 2.44 | C30: 55.632 | D30: 2.440133779
A31: Rémun. du capital propre | B31: 0.13 | C31: 2.964 | D31: 0.1300071276
A32: Tot ch.fixes hors rémun trav+cap | B32: =B24+B25+B26+B27+B28+B29+B23 -> 4.32 | C32: =C24+C25+C26+C27+C28+C29+C23 -> 98.496 | D32: =D24+D25+D26+D27+D28+D29+D23 -> 4.320236855
A33: Rémunération du travail et du capital | B33: =B31+B30 -> 2.57 | C33: =C31+C30 -> 58.596 | D33: =D31+D30 -> 2.570140907
A34: TOTAL coût de production | B34: =B33+B32+B22 -> 10.75 | C34: =C33+C32+C22 -> 157.092 | D34: =D33+D32+D22 -> 10.7505894
A35: Aides atelier Ovin | B35: 1.17 | C35: =B35*$B$9 -> 26.676 | D35: =C35/D9 -> 1.170064148
A36: Aides non couplées | B36: 3.13 | C36: 71.364 | D36: =C36/D9 -> 3.13017161
A37: Variation d'aide | D37: =D43/D9 -> 0
A38: Prix de revient pour rémunérer à 1.5 SMIC net | B38: =B34-B35-B36 -> 6.45 | C38: =C34-C35-C36 -> 59.052 | D38: =D34-D35-D36-D37 -> 6.450353638
A39: Prix de vente réel | D39: 6.45
A40: Rémunération en nb SMIC | D40: =(D39-(D38-D30))*1.5/D30 -> 1.499782612 | E40: Nb SMIC = ((Prix de vente)-( Prix de revient - Rémun MO (Prix à payer pour couvrir les charges)))*1.5/Rémun MO.
A41: Aides atelier Ovin / brebis | D41: =D35*D9 -> 26.676 | F41: soit : Nouvelle rémun de la MO/Rémun MO pour 1.5SMIC * 1.5 SMIC
A42: Aides non couplées / brebis | D42: =D36*D9 -> 71.364
A43: Aides en + ou en - /brebs | D43: 0
A44: Graphique coût de production :
B45: =B4 -> AB Zone herbagère | D45: =D4 -> Modifs
A46: Charges proportionnelles | B46: =B22 -> 3.86 | D46: =D22 -> 3.860211634
A47: Charges fixes sans travail et capital | B47: =B32 -> 4.32 | D47: =D32 -> 4.320236855
A48: Rémunération du travail et du capital | B48: =B33 -> 2.57 | D48: =D33 -> 2.570140907
A49: Prix de revient | B49: =B38 -> 6.45 | D49: =D38 -> 6.450353638
B53: =B4 -> AB Zone herbagère
A54: Nb brebis/UTH ovin | B54: 366
A55: Nb brebis /ha de SFP | B55: 5.4

Sheet Références
B3: Références | C3: Références
A4: Données du groupe | B4: AB Zone rustique | C4: AB Zone herbagère
A5: Productivité numérique | B5: 1.28 | C5: 1.45
A6: Taux renouvellement % | B6: 18 | C6: 25
A9: Equivalent Kgs carcasse/brebis | B9: 17.3 | C9: 22.8
A10: Part réformes en kgs carcasse/brebis | B10: 0 | C10: 1.58
A11: Part des achats en moins en kgs carcasse/brebis | B11: 0 | C11: 1.1
A12: Kgs de concentrés consommés/brebis | B12: 125 | C12: 102
A13: €/kg du cocnentré acheté et prélevé (prix de cession) | B13: 0.391 | C13: 0.424
B16: Références | C16: Références
A17: Coût de prod Ovins avec céré prix cession | B17: €/kg carcasse | C17: €/kg carcasse
A18: Alimentation (yc alic prélevés et fourrages) | B18: 3.03 | C18: 1.94
A19: Frais d'élevage (hors achats d'Ax yc véto+CMV) | B19: 1.11 | C19: 1.42
A20: Part génétique des achats d'Ax | B20: 0.21 | C20: 0.06
A21: Frais SFP hors entreprise | B21: 0.43 | C21: 0.44
A23: CP non affectables | B23: 0.13 | C23: 0.07
A24: Mécanisation | B24: 2.46 | C24: 1.31
A25: Bâtiments + clôtures | B25: 0.8 | C25: 0.41
A26: Frais de gestion (ou ch.div.) | B26: 1.48 | C26: 0.81
A27: Ch. Foncières | B27: 1.34 | C27: 0.85
A28: Frais financiers | B28: 0.16 | C28: 0.07
A29: Trav.(sala+Msa+Agri) | B29: 0.76 | C29: 0.8
A30: Rémun. nette de MO fam Ov à 1.5 SMIC | B30: 4.42 | C30: 2.44
A31: Rémun. du capital propre | B31: 0.11 | C31: 0.13
A35: Aides atelier Ovin | B35: 1.51 | C35: 1.17
A36: Aides non couplées | B36: 6.19 | C36: 3.13
A38: Nb brebis/UTH ovin | B38: 267 | C38: 366
A39: Nb brebis /ha de SFP | B39: 4.5 | C39: 5.4
